bitfinex/quotes_SOLUSD_20240816
["timestamp","ask_amount","ask_price","bid_price","bid_amount"]
[1723818033658,0.12549,140.26,140.15,45.0]
[1723818034366,0.12549,140.26,140.15,402.43220834]
[1723818034758,0.12549,140.26,140.15,357.43220834]
[1723818035162,0.12549,140.22,140.15,357.43220834]
[1723818035764,0.12549,140.26,140.15,357.43220834]
[1723818035967,2.80868544,140.26,140.15,357.43220834]
[1723818036262,7.42027912,140.27,140.16,45.0]
[1723818036467,20.0,140.26,140.16,45.0]
[1723818037445,20.0,140.26,140.17,0.12549]
[1723818037648,7.42027912,140.27,140.18,7.2632]
[1723818037945,10.19951737,140.3,140.19,45.0]
[1723818038261,2.78010911,140.3,140.2,0.12549]
[1723818038466,7.8073,140.31,140.2,0.12549]
[1723818038843,10.62072061,140.31,140.2,0.12549]
[1723818039661,0.25098,140.3,140.2,0.12549]
[1723818039969,0.12549,140.3,140.2,0.25098]
[1723818040155,0.12549,140.3,140.2,0.12549]
[1723818040949,0.12549,140.3,140.19,357.43220834]
[1723818041265,45.25098,140.3,140.19,357.43220834]
[1723818041451,0.12549,140.28,140.19,357.43220834]
[1723818041651,45.25098,140.28,140.19,357.43220834]
[1723818041854,0.12549,140.26,140.19,357.43220834]
[1723818042065,45.25098,140.26,140.19,357.43220834]
[1723818042256,0.12549,140.24,140.19,357.43220834]
[1723818042455,0.12549,140.22,140.14,357.43220834]
[1723818042654,65.25098,140.22,140.14,357.43220834]
[1723818042846,20.25098,140.22,140.14,357.43220834]
[1723818044080,20.12549,140.22,140.14,357.43220834]
[1723818044289,7.1788,140.27,140.14,357.43220834]
[1723818044574,7.1788,140.3,140.17,27.3836]
[1723818044869,7.1788,140.3,140.17,391.94960834]
[1723818044870,10.04322343,140.3,140.17,391.94960834]
[1723818045083,10.04322343,140.3,140.18,0.12549]
[1723818045260,10.04322343,140.3,140.18,45.50196]
[1723818046355,7.1788,140.3,140.18,45.37647]
[1723818046559,7.1788,140.3,140.18,45.12549]
[1723818046755,0.12549,140.28,140.18,45.0]
[1723818046962,45.12549,140.28,140.18,45.0]
[1723818047175,0.12549,140.26,140.17,357.43220834]
[1723818047470,45.12549,140.26,140.17,357.43220834]
[1723818047659,0.12549,140.24,140.17,357.43220834]
[1723818047970,0.12549,140.24,140.13,384.61640834]
[1723818048875,0.12549,140.24,140.14,45.0]
[1723818049860,27.4183601,140.25,140.15,0.12549]
[1723818050153,20.0,140.25,140.15,20.50196]
[1723818050479,2.86215995,140.28,140.17,0.12549]
[1723818050657,20.0,140.29,140.17,0.37647]
[1723818050861,27.41217037,140.29,140.17,0.37647]
[1723818051063,27.41217037,140.29,140.17,0.25098]
[1723818051373,0.12549,140.28,140.17,1.67520639]
[1723818051681,27.41217037,140.29,140.17,0.25098]
[1723818051858,30.24187361,140.29,140.13,391.75240834]
[1723818052181,45.0,140.28,140.13,384.61640834]
[1723818052364,20.0,140.27,140.13,384.61640834]
[1723818052563,45.0,140.26,140.13,384.61640834]
[1723818052765,20.25098,140.25,140.13,384.61640834]
[1723818053058,33.84058,140.25,140.13,384.61640834]
[1723818053265,0.12549,140.23,140.13,384.61640834]
[1723818053452,20.25098,140.23,140.13,384.61640834]
[1723818053779,20.0,140.23,140.13,384.61640834]
[1723818054077,20.25098,140.24,140.13,384.61640834]
[1723818054271,20.25098,140.24,140.14,45.12549]
[1723818055063,20.25098,140.24,140.15,1.42618244]
[1723818055667,20.12549,140.24,140.15,1.42618244]
[1723818055987,20.12549,140.24,140.13,384.61640834]
[1723818056283,0.12549,140.23,140.13,376.66650834]
[1723818056461,0.12549,140.21,140.13,357.43220834]
[1723818056658,20.0,140.21,140.13,357.43220834]
[1723818057472,20.0,140.21,140.14,0.12549]
[1723818057681,20.0,140.21,140.14,45.50196]
[1723818058072,22.86527588,140.24,140.14,410.06976834]
[1723818058262,7.3482,140.26,140.16,32.96289]
[1723818058465,21.1759,140.3,140.18,0.12549]
[1723818058997,21.1759,140.3,140.17,52.51047]
[1723818059163,21.1759,140.3,140.18,1.19168969]
[1723818059461,21.1759,140.3,140.19,0.12549]
[1723818059658,20.0,140.28,140.19,0.12549]
[1723818060104,20.0,140.28,140.18,0.12549]
[1723818060300,20.0,140.28,140.18,0.25098]
[1723818060596,0.12549,140.27,140.17,0.12549]
[1723818060882,0.25098,140.27,140.17,0.12549]
[1723818061086,0.12549,140.27,140.18,0.12549]
[1723818061276,20.0,140.28,140.18,1.58741635]
[1723818061478,22.78290763,140.28,140.19,0.12549]
[1723818061674,0.12549,140.27,140.19,0.12549]
[1723818061990,0.12549,140.27,140.16,25.7029]
[1723818062190,22.78290763,140.28,140.19,0.12549]
[1723818062687,20.0,140.27,140.19,0.12549]
[1723818062862,2.78290763,140.28,140.18,7.25909]
[1723818063059,20.0,140.29,140.19,45.37647]
[1723818063568,0.12549,140.28,140.19,0.37647]
[1723818063764,22.81317507,140.29,140.19,0.12549]
[1723818063968,22.81317507,140.29,140.19,357.80867834]
[1723818064189,22.81317507,140.29,140.2,45.0]
[1723818064494,0.12549,140.28,140.19,357.43220834]
[1723818064813,0.25098,140.28,140.19,357.43220834]
[1723818065367,45.25098,140.28,140.19,357.43220834]
[1723818065672,0.12549,140.26,140.19,357.43220834]
[1723818065892,0.25098,140.26,140.19,357.43220834]
[1723818066274,45.25098,140.26,140.19,357.43220834]
[1723818066470,20.0,140.25,140.19,357.43220834]
[1723818066671,0.12549,140.24,140.19,357.43220834]
[1723818066905,0.12549,140.25,140.19,357.43220834]
[1723818069840,0.12549,140.25,140.14,357.43220834]
[1723818070002,0.12549,140.25,140.15,45.0]
[1723818070197,0.12549,140.23,140.14,357.43220834]
[1723818070497,13.89968,140.23,140.12,383.39900834]
[1723818070735,0.12549,140.21,140.12,383.39900834]
[1723818071037,0.25098,140.21,140.12,383.39900834]
[1723818071702,0.25098,140.21,140.12,357.43220834]
[1723818072044,45.25098,140.21,140.12,357.43220834]
[1723818072197,0.12549,140.19,140.12,357.43220834]
[1723818072738,0.25098,140.19,140.12,357.43220834]
[1723818072914,0.12549,140.17,140.12,357.43220834]
[1723818073223,20.25098,140.17,140.1,358.26096634]
[1723818073848,20.25098,140.17,140.1,0.828758]
[1723818074045,0.12549,140.15,140.1,0.828758]
[1723818074334,20.25098,140.15,140.05,357.43220834]
[1723818074508,0.12549,140.13,140.0,383.88240834]
[1723818074709,0.12549,140.1,139.96,0.828758]
[1723818075113,65.25098,140.1,139.96,0.828758]
[1723818075903,0.12549,140.08,139.96,0.828758]
[1723818076105,65.25098,140.08,139.96,0.828758]
[1723818078536,0.12549,140.05,139.96,0.828758]
[1723818078744,65.25098,140.05,139.96,0.828758]
[1723818079527,20.0,140.05,139.96,0.828758]
[1723818080124,20.0,140.06,139.97,1.42631091]
[1723818080346,20.0,140.06,139.96,0.828758]
[1723818081021,0.25098,140.05,139.96,0.828758]
[1723818081623,45.25098,140.05,139.96,0.828758]
[1723818081822,0.12549,140.03,139.96,0.828758]
[1723818082060,0.25098,140.03,139.96,0.828758]
[1723818082220,0.12549,140.01,139.96,0.828758]
[1723818082556,20.12549,140.01,139.96,0.828758]
[1723818082837,20.0,140.0,139.96,0.828758]
[1723818083048,0.25098,140.03,139.96,0.828758]
[1723818083560,0.12549,140.03,139.96,0.828758]
[1723818083715,45.25098,140.04,139.96,0.828758]
[1723818084027,0.12549,140.02,139.96,0.828758]
[1723818084362,0.12549,140.0,139.96,0.828758]
[1723818084650,0.12549,140.0,139.92,382.4]
[1723818084651,0.12549,139.98,139.92,382.4]
[1723818084867,65.25098,139.98,139.92,382.4]
[1723818085557,20.25098,139.98,139.92,382.4]
[1723818085855,20.25098,139.98,139.85,408.5541]
[1723818086013,0.12549,139.96,139.85,408.5541]
[1723818086215,20.25098,139.96,139.85,408.5541]
[1723818087344,0.12549,139.93,139.85,382.4]
[1723818087537,20.25098,139.93,139.85,382.4]
[1723818088843,0.12549,139.91,139.85,382.4]
[1723818089021,20.25098,139.91,139.82,0.828758]
[1723818089221,33.89968,139.91,139.82,0.828758]
[1723818090247,45.0,139.9,139.82,0.828758]
[1723818090447,20.25098,139.89,139.82,0.828758]
[1723818090654,0.12549,139.87,139.82,0.828758]
[1723818090822,0.25098,139.87,139.82,0.828758]
[1723818091027,20.25098,139.87,139.82,0.828758]
[1723818092640,20.12549,139.87,139.82,0.828758]
[1723818092843,0.12549,139.86,139.82,0.828758]
[1723818094148,20.0,139.87,139.82,0.828758]
[1723818094847,13.6487,139.91,139.82,0.828758]
[1723818095038,7.6198,139.92,139.83,7.1511]
[1723818095354,7.6198,139.92,139.84,45.0]
[1723818096447,7.6198,139.92,139.83,52.1514]
[1723818096640,2.88939946,139.93,139.84,0.25098]
[1723818096837,7.6828,139.95,139.86,7.1499]
[1723818097041,7.6828,139.95,139.87,45.0]
[1723818097627,5.79341191,139.95,139.87,45.0]
[1723818097832,5.79341191,139.95,139.86,45.0]
[1723818098224,20.0,139.94,139.86,45.0]
[1723818099451,0.12549,139.93,139.85,18.9822]
[1723818099747,0.25098,139.93,139.85,18.9822]
[1723818099953,0.25098,139.93,139.86,1.42923447]
[1723818100252,20.0,139.94,139.86,8.57895638]
[1723818100563,20.0,139.94,139.89,7.1482]
[1723818100731,2.88548121,139.97,139.9,45.0]
[1723818100938,13.6487,139.99,139.9,427.4]
[1723818101461,10.6880106,140.0,139.91,7.147]
[1723818101632,10.6880106,140.0,139.92,45.0]
[1723818101837,10.6880106,140.0,139.9,382.4]
[1723818102084,13.7218,139.99,139.85,401.3822]
[1723818102764,45.0,139.98,139.85,401.3822]
[1723818103139,20.25098,139.97,139.85,382.4]
[1723818103346,0.12549,139.95,139.85,382.4]
[1723818103564,20.25098,139.95,139.85,382.4]
[1723818105238,20.12549,139.95,139.85,382.4]
[1723818105555,20.0,139.98,139.85,382.4]
[1723818105735,20.0,139.98,139.86,45.0]
[1723818105736,45.0,139.97,139.86,45.0]
[1723818105940,7.3932,139.95,139.85,382.4]
[1723818106251,13.7218,139.93,139.82,0.828758]
[1723818106480,20.0,139.92,139.82,0.828758]
[1723818106657,0.12549,139.9,139.82,0.828758]
[1723818106862,45.12549,139.9,139.82,0.828758]
[1723818107080,20.12549,139.89,139.82,0.828758]
[1723818107273,0.12549,139.87,139.82,0.828758]
[1723818107454,20.25098,139.87,139.82,0.828758]
[1723818108467,23.0282476,139.87,139.82,0.828758]
[1723818108660,20.0,139.86,139.82,0.828758]
[1723818108985,3.0282476,139.87,139.82,0.828758]
[1723818109363,13.7218,139.86,139.82,0.828758]
[1723818109570,0.25098,139.85,139.82,0.828758]
[1723818109777,20.25098,139.85,139.82,0.828758]
[1723818109967,7.9162,139.84,139.77,382.4]
[1723818110201,20.25098,139.83,139.77,382.4]
[1723818111189,0.12549,139.81,139.77,382.4]
[1723818111386,20.25098,139.81,139.71,382.4]
[1723818113289,0.12549,139.79,139.71,382.4]
[1723818113591,20.0,139.79,139.71,382.4]
[1723818113887,2.8346138,139.83,139.71,382.4]
[1723818114090,7.9162,139.84,139.74,7.1561]
[1723818114298,7.9162,139.84,139.72,40.0]
[1723818114604,7.9162,139.84,139.74,17.8897]
[1723818114796,7.9162,139.84,139.75,45.0]
[1723818115587,10.69733141,139.84,139.75,45.0]
[1723818115776,10.69733141,139.84,139.75,52.1554]
[1723818115979,7.9162,139.84,139.76,7.155]
[1723818116182,12.893,139.86,139.77,52.28009]
[1723818116496,7.4051,139.87,139.77,454.39068]
[1723818116671,7.4051,139.87,139.77,447.23608]
[1723818116871,7.4051,139.87,139.77,382.4]
[1723818117186,10.21498863,139.87,139.77,382.4]
[1723818117707,20.0,139.86,139.77,382.4]
[1723818118190,0.12549,139.84,139.77,382.4]
[1723818118374,12.893,139.83,139.77,382.4]
[1723818118572,12.893,139.83,139.69,18.6977]
[1723818118573,65.25098,139.82,139.7,382.4]
[1723818119290,30.0,139.78,139.7,382.4]
[1723818119507,20.0,139.77,139.7,389.558]
[1723818119861,20.0,139.77,139.71,45.0]
[1723818120274,20.0,139.77,139.72,7.53347]
[1723818120468,15.67082912,139.83,139.74,0.12549]
[1723818120469,2.77782912,139.83,139.74,0.12549]
[1723818120798,20.2981,139.87,139.74,0.12549]
[1723818120985,23.11025294,139.87,139.73,70.0474]
[1723818121301,23.11025294,139.87,139.74,7.65796]
[1723818121478,23.11025294,139.87,139.75,52.1555]
[1723818121687,23.11025294,139.87,139.75,7.1555]
[1723818121884,23.11025294,139.87,139.76,45.12549]
[1723818122192,23.11025294,139.87,139.77,0.12549]
[1723818122498,23.11025294,139.87,139.77,64.05809]
[1723818122794,23.11025294,139.87,139.77,45.0]
[1723818123794,20.12549,139.86,139.77,52.1542]
[1723818123986,20.0,139.86,139.77,45.0]
[1723818124578,20.0,139.86,139.76,382.4]
[1723818124978,0.12549,139.85,139.76,382.4]
[1723818125191,0.25098,139.85,139.76,382.4]
[1723818125624,20.0,139.86,139.77,46.42829876]
[1723818125904,27.4834733,139.91,139.79,18.00889]
[1723818126197,20.084,139.91,139.81,34.4206]
[1723818126384,20.084,139.91,139.82,45.60529967]
[1723818126580,20.084,139.91,139.82,427.4]
[1723818127691,20.084,139.91,139.83,1.42948659]
[1723818127909,22.89932535,139.91,139.83,1.42948659]
[1723818128222,22.89932535,139.91,139.82,427.4]
[1723818128506,22.89932535,139.91,139.82,382.4]
[1723818128710,20.0,139.9,139.82,382.4]
[1723818128908,0.12549,139.89,139.82,382.4]
[1723818129072,45.25098,139.89,139.82,382.4]
[1723818129274,0.12549,139.87,139.82,382.4]
[1723818129589,0.25098,139.87,139.82,382.4]
[1723818130200,0.12549,139.87,139.82,382.4]
[1723818130690,0.25098,139.87,139.82,382.4]
[1723818131209,0.12549,139.86,139.82,382.4]
[1723818132305,0.12549,139.86,139.77,401.3793]
[1723818132498,0.12549,139.86,139.74,389.8603]
[1723818132720,0.12549,139.84,139.74,389.8603]
[1723818132904,33.21358,139.84,139.74,382.4]
[1723818133207,0.12549,139.82,139.74,382.4]
[1723818133504,20.25098,139.82,139.74,382.4]
[1723818133709,45.0,139.81,139.74,382.4]
[1723818134001,0.12549,139.79,139.74,382.4]
[1723818134203,0.12549,139.79,139.7,389.6763]
[1723818134602,7.9361,139.78,139.7,382.4]
[1723818134782,20.25098,139.77,139.7,382.4]
[1723818136100,0.12549,139.75,139.7,382.4]
[1723818136291,20.25098,139.75,139.7,382.4]
[1723818137291,20.0,139.75,139.7,382.4]
[1723818137495,20.0,139.77,139.7,382.4]
[1723818137694,0.12549,139.76,139.7,382.4]
[1723818138427,0.25098,139.76,139.68,383.228758]
[1723818138603,0.25098,139.76,139.68,0.828758]
[1723818138803,0.12549,139.76,139.68,0.828758]
[1723818139020,20.0,139.77,139.68,0.828758]
[1723818139327,0.12549,139.76,139.68,0.828758]
[1723818140504,0.12549,139.75,139.68,0.828758]
[1723818140821,20.12549,139.75,139.68,0.828758]
[1723818141035,7.3013,139.72,139.58,257.8]
[1723818141335,65.25098,139.71,139.58,382.4]
[1723818141627,0.12549,139.68,139.58,382.4]
[1723818141913,65.25098,139.68,139.58,382.4]
[1723818142414,30.0,139.67,139.58,382.4]
[1723818142596,20.25098,139.66,139.58,382.4]
[1723818143109,20.12549,139.66,139.58,382.4]
[1723818143310,0.12549,139.65,139.58,382.4]
[1723818143609,30.12549,139.65,139.58,382.4]
[1723818143817,20.12549,139.64,139.58,382.4]
[1723818143988,0.12549,139.63,139.58,382.4]
[1723818144413,30.0,139.62,139.58,382.4]
[1723818144590,20.0,139.61,139.58,382.4]
[1723818145618,30.0,139.6,139.58,382.4]
[1723818145813,30.0,139.6,139.54,383.228758]
[1723818145814,20.0,139.59,139.54,383.228758]
[1723818146490,30.0,139.58,139.54,383.228758]
[1723818146720,20.0,139.57,139.54,383.228758]
[1723818147616,7.762,139.64,139.54,383.228758]
[1723818147919,0.12549,139.65,139.54,383.228758]
[1723818147920,0.12549,139.65,139.56,7.1653]
[1723818148124,0.12549,139.65,139.55,7.1657]
[1723818148293,0.12549,139.65,139.56,45.12549]
[1723818148495,20.3379,139.68,139.56,45.12549]
[1723818148804,20.3379,139.68,139.57,1.21232637]
[1723818148994,20.3379,139.68,139.58,0.12549]
[1723818149195,23.18985873,139.68,139.56,427.65098]
[1723818149397,23.18985873,139.68,139.56,427.4]
[1723818149814,23.18985873,139.68,139.56,382.4]
[1723818150022,0.12549,139.67,139.56,382.4]
[1723818150191,20.25098,139.67,139.56,382.4]
[1723818150595,0.12549,139.65,139.56,382.4]
[1723818150797,20.25098,139.65,139.56,382.4]
[1723818151110,45.0,139.64,139.56,382.4]
[1723818151424,0.12549,139.62,139.56,382.4]
[1723818151640,0.12549,139.6,139.54,0.828758]
[1723818151835,0.12549,139.58,139.54,0.828758]
[1723818152125,0.12549,139.58,139.48,389.7327]
[1723818152126,20.12549,139.58,139.48,389.7327]
[1723818152291,20.25098,139.58,139.48,389.7327]
[1723818152627,20.25098,139.58,139.49,1.04869605]
[1723818152820,20.25098,139.58,139.48,389.7327]
[1723818153194,20.0,139.58,139.48,389.7327]
[1723818153521,20.0,139.58,139.5,7.1683]
[1723818153726,22.831741,139.6,139.5,7.1683]
[1723818154033,22.831741,139.6,139.49,7.29429]
[1723818154244,22.831741,139.6,139.5,45.12549]
[1723818154557,22.831741,139.6,139.5,0.12549]
[1723818154716,22.831741,139.6,139.5,0.25098]
[1723818155112,0.12549,139.59,139.49,45.0]
[1723818155309,0.25098,139.59,139.49,45.0]
[1723818155496,0.25098,139.59,139.48,389.7327]
[1723818156828,0.12549,139.59,139.48,396.902]
[1723818157132,0.12549,139.59,139.48,389.7327]
[1723818157334,0.12549,139.59,139.48,396.902]
[1723818157516,0.12549,139.59,139.49,45.12549]
[1723818157718,0.12549,139.59,139.49,46.55817529]
[1723818157911,0.12549,139.59,139.48,382.4]
[1723818158234,45.12549,139.59,139.48,382.4]
[1723818158736,0.12549,139.57,139.48,382.4]
[1723818159229,0.25098,139.57,139.48,382.4]
[1723818160528,20.0,139.58,139.48,382.4]
[1723818161238,30.0,139.57,139.48,382.4]
[1723818161532,20.0,139.56,139.48,382.4]
[1723818162122,0.12549,139.57,139.48,382.4]
[1723818162307,0.12549,139.55,139.48,382.4]
[1723818162629,20.12549,139.55,139.48,382.4]
[1723818162832,20.0,139.55,139.48,382.4]
[1723818163130,10.18822938,139.59,139.48,382.4]
[1723818163332,10.18822938,139.59,139.49,45.0]
[1723818164132,10.18822938,139.59,139.48,382.4]
[1723818164538,20.0,139.58,139.48,382.4]
[1723818165034,0.25098,139.57,139.44,390.2026]
[1723818165411,20.0,139.58,139.44,390.2026]
[1723818165412,20.0,139.58,139.44,410.2026]
[1723818165729,20.0,139.58,139.46,0.12549]
[1723818166030,10.18822938,139.59,139.47,7.1695]
[1723818166246,10.18822938,139.59,139.48,52.54587]
[1723818166604,10.18822938,139.59,139.48,45.12549]
[1723818166933,10.18822938,139.59,139.47,45.0]
[1723818167109,10.18822938,139.59,139.44,390.2026]
[1723818167508,65.12549,139.58,139.44,390.2026]
[1723818167906,0.12549,139.55,139.44,390.2026]
[1723818168136,20.25098,139.55,139.44,382.4]
[1723818168655,0.12549,139.53,139.44,382.4]
[1723818168809,50.25098,139.53,139.44,382.4]
[1723818169738,20.0,139.53,139.44,382.4]
[1723818170849,0.12549,139.52,139.44,382.4]
[1723818171016,0.25098,139.52,139.42,400.3904]
[1723818171411,0.25098,139.52,139.42,382.4]
[1723818172237,45.25098,139.52,139.42,382.4]
[1723818172529,20.0,139.51,139.42,382.4]
[1723818172738,0.12549,139.5,139.42,382.4]
[1723818173538,0.25098,139.52,139.42,382.4]
[1723818173746,45.25098,139.52,139.42,382.4]
[1723818173929,20.0,139.51,139.42,382.4]
[1723818174117,0.12549,139.5,139.42,382.4]
[1723818174440,0.25098,139.5,139.42,382.4]
[1723818175529,30.25098,139.5,139.42,382.4]
[1723818175837,27.7992,139.49,139.42,382.4]
[1723818176448,0.12549,139.48,139.42,382.4]
[1723818176823,12.5787,139.47,139.4,0.828758]
[1723818177139,30.25098,139.48,139.31,7.1782]
[1723818177140,0.12549,139.45,139.31,7.1782]
[1723818177323,0.12549,139.45,139.3,17.9463]
[1723818177524,0.25098,139.45,139.3,17.9463]
[1723818177920,0.12549,139.43,139.3,19.38084182]
[1723818178121,32.00088,139.43,139.3,26.55904182]
[1723818178321,32.00088,139.43,139.3,25.1245]
[1723818178651,32.00088,139.43,139.31,1.43448719]
[1723818178820,32.00088,139.43,139.3,47.1785]
[1723818179021,32.00088,139.43,139.31,7.1781]
[1723818179221,30.0,139.44,139.32,40.0]
[1723818179419,7.3033,139.46,139.33,17.942]
[1723818179646,7.3033,139.46,139.33,25.1191]
[1723818180033,7.3033,139.46,139.34,7.30209]
[1723818180338,7.3033,139.46,139.35,45.0]
[1723818180948,7.3033,139.46,139.3,17.9465]
[1723818181151,7.3033,139.46,139.29,27.3974]
[1723818181331,7.3033,139.46,139.29,34.5766]
[1723818181515,0.12549,139.45,139.3,27.1785]
[1723818181840,0.25098,139.45,139.29,52.5239]
[1723818182027,0.12549,139.41,139.29,27.3974]
[1723818182225,0.12549,139.39,139.29,27.3974]
[1723818182545,20.12549,139.39,139.29,27.3974]
[1723818183243,20.12549,139.39,139.27,7.1799]
[1723818183450,20.12549,139.39,139.26,45.960958]
[1723818183842,20.12549,139.39,139.26,20.828758]
[1723818184529,20.12549,139.39,139.27,0.12549]
[1723818184726,20.12549,139.39,139.26,20.828758]
[1723818184924,0.12549,139.38,139.26,0.828758]
[1723818185151,0.12549,139.34,139.24,382.4]
[1723818185326,0.12549,139.32,139.24,382.4]
[1723818185531,7.2616,139.31,139.16,382.4]
[1723818185729,0.12549,139.28,139.12,0.828758]
[1723818185929,0.12549,139.28,139.12,8.016658]
[1723818186242,0.12549,139.26,139.12,0.828758]
[1723818186447,65.12549,139.26,139.12,0.828758]
[1723818186621,0.12549,139.24,139.04,7.39739678]
[1723818186948,65.12549,139.24,139.06,7.1911]
[1723818187151,65.12549,139.24,139.02,0.21543351]
[1723818187152,0.12549,139.22,139.02,0.21543351]
[1723818187449,0.12549,139.19,139.02,0.21543351]
[1723818187652,20.25098,139.19,139.04,7.192]
[1723818187957,20.25098,139.19,139.05,7.1913]
[1723818188261,4.5898,139.18,139.02,18.19813351]
[1723818188431,0.25098,139.17,139.02,25.39123351]
[1723818188761,0.25098,139.17,139.0,520.51994]
[1723818188762,20.25098,139.17,139.01,0.6375523]
[1723818189429,0.12549,139.14,139.01,0.6375523]
[1723818189750,0.12549,139.12,139.01,0.6375523]
[1723818189931,0.12549,139.1,139.0,500.51994]
[1723818190270,0.12549,139.11,139.0,500.01994]
[1723818190445,0.12549,139.08,139.0,500.01994]
[1723818190651,65.25098,139.08,139.0,500.01994]
[1723818191240,85.25098,139.08,139.0,495.55474]
[1723818191454,0.12549,139.04,139.0,495.55474]
[1723818191754,20.25098,139.04,139.0,495.55474]
[1723818192133,0.12549,139.02,139.0,493.76583128]
[1723818192335,20.12549,139.02,139.0,493.76583128]
[1723818192536,20.0,139.04,139.0,493.76583128]
[1723818193749,0.12549,139.03,139.0,493.76583128]
[1723818193953,20.0,139.09,139.0,493.76583128]
[1723818194253,0.513,139.13,139.0,493.76583128]
[1723818194457,27.39985144,139.1,139.0,493.76583128]
[1723818195237,7.39985144,139.1,139.0,493.76583128]
[1723818196638,0.12549,139.09,139.0,493.76583128]
[1723818196862,20.12549,139.09,139.0,493.76583128]
[1723818197166,0.12549,139.07,139.0,493.76583128]
[1723818197464,20.12549,139.07,139.0,493.76583128]
[1723818197663,0.12549,139.05,139.0,493.76583128]
[1723818197839,20.12549,139.05,139.0,493.76583128]
[1723818198044,0.12549,139.03,139.0,493.76583128]
[1723818198240,30.12549,139.01,139.0,493.76583128]
[1723818198447,95.25098,139.01,139.0,493.76583128]
[1723818199263,50.12549,139.01,139.0,493.76583128]
[1723818200362,7.39985144,139.1,139.0,493.76583128]
[1723818201150,27.399852,139.15,139.0,493.76583128]
[1723818201567,7.35647886,139.11,139.0,493.76583128]
[1723818201763,27.399852,139.15,139.0,493.76583128]
[1723818202065,7.35829385,139.12,139.0,493.76583128]
[1723818202265,27.399852,139.15,139.0,493.76583128]
[1723818202450,7.36821054,139.14,139.0,493.76583128]
[1723818202871,20.0,139.24,139.0,493.76583128]
[1723818203162,7.36097107,139.19,139.02,6.2604]
[1723818203353,20.0,139.28,139.03,0.12549]
[1723818203550,20.0,139.28,139.03,45.12549]
[1723818203746,7.36536984,139.2,139.04,20.25098]
[1723818203951,20.0,139.26,139.04,0.12549]
[1723818204157,7.36593255,139.19,139.03,45.0]
[1723818204344,20.0,139.28,139.04,20.12549]
[1723818204553,7.37623475,139.21,139.05,45.12549]
[1723818205066,7.37156919,139.25,139.1,20.0]
[1723818205295,7.37156919,139.25,139.12,6.2326]
[1723818205443,27.131,139.37,139.12,6.2326]
[1723818205649,20.0,139.39,139.14,20.0]
[1723818205876,7.37909216,139.29,139.15,0.25098]
[1723818206070,20.0,139.39,139.15,0.25098]
[1723818206383,7.39686153,139.29,139.15,45.0]
[1723818206559,20.0,139.38,139.15,45.0]
[1723818206761,20.0,139.34,139.12,6.2326]
[1723818206991,20.0,139.34,139.13,45.0]
[1723818207188,27.387497,139.34,139.13,45.0]
[1723818207553,27.387497,139.34,139.13,65.0]
[1723818207758,27.387497,139.34,139.14,0.12549]
[1723818208083,27.387497,139.34,139.13,45.0]
[1723818208281,27.387497,139.34,139.14,1.56167841]
[1723818208481,27.387497,139.34,139.15,1.56154218]
[1723818208691,27.387497,139.34,139.15,20.12549]
[1723818208863,7.38749735,139.38,139.16,45.12549]
[1723818209175,27.387497,139.37,139.16,45.0]
[1723818209686,27.387497,139.37,139.18,20.0]
[1723818209868,27.387497,139.37,139.19,45.0]